bitfinex-derivatives/quotes_ETHF0:USTF0_20241102
["timestamp","ask_amount","ask_price","bid_price","bid_amount"]
[1730551273224,0.8726,2497.1,2497.0,0.28042]
[1730551273631,1.15301,2497.1,2497.0,0.28042]
[1730551274226,5.15781,2497.1,2497.0,0.28042]
[1730551274432,0.28043,2497.0,2496.9,0.28043]
[1730551274628,0.74033,2497.0,2496.9,0.28043]
[1730551274930,4.4647,2497.0,2496.7,3.2078]
[1730551275131,0.28044,2496.9,2496.8,0.28044]
[1730551275527,0.4599,2497.0,2496.8,0.28044]
[1730551275725,0.28044,2496.9,2496.8,0.28044]
[1730551276131,0.28044,2496.9,2496.5,0.4586]
[1730551276132,10.3388336,2496.9,2496.5,0.4586]
[1730551276438,3.1262336,2496.6,2496.5,0.28047]
[1730551276627,3.4067036,2496.6,2496.5,0.28047]
[1730551276829,4.2823036,2496.6,2496.5,0.28047]
[1730551277131,4.0018336,2496.6,2496.3,3.6373]
[1730551277332,3.4067236,2496.4,2496.3,3.4883]
[1730551278131,3.4067236,2496.4,2496.3,0.2805]
[1730551278326,3.1262336,2496.4,2496.3,0.2805]
[1730551283036,3.2078,2496.6,2496.1,0.8798]
[1730551283337,0.28045,2496.8,2496.3,0.70125]
[1730551283641,0.28045,2496.8,2496.7,0.28046]
[1730551284034,3.9805336,2496.9,2496.8,0.28045]
[1730551284035,4.2609736,2496.9,2496.8,0.28045]
[1730551287338,5.49181903,2497.1,2496.5,1.58699]
[1730551287555,3.1262336,2497.1,2497.0,0.28042]
[1730551288340,3.4066436,2497.1,2497.0,0.28042]
[1730551288649,0.28043,2497.0,2496.9,0.4312]
[1730551288845,3.5751336,2497.0,2496.8,0.4201]
[1730551289034,0.28046,2496.7,2496.6,0.28046]
[1730551289347,0.28046,2496.7,2496.5,0.8833]
[1730551289348,3.4067036,2496.6,2496.5,1.16378]
[1730551292048,0.28048,2496.5,2496.4,0.70058]
[1730551292638,0.28049,2496.4,2496.3,0.28049]
[1730551292844,3.5480336,2496.4,2496.3,0.28049]
[1730551293043,3.4480336,2496.4,2496.3,0.28049]
[1730551293648,3.3480336,2496.4,2496.3,0.28049]
[1730551293847,3.2480336,2496.4,2496.3,0.28049]
[1730551294145,3.5285236,2496.4,2496.3,0.28049]
[1730551294543,3.2480336,2496.4,2496.2,0.7259]
[1730551294739,0.2805,2496.3,2496.2,0.7259]
[1730551295939,3.2480336,2496.4,2496.1,1.14442]
[1730551295940,0.28051,2496.2,2496.1,1.14442]
[1730551296140,3.4067436,2496.2,2496.1,0.8639]
[1730551296654,3.4067436,2496.2,2496.1,1.14442]
[1730551296842,3.1262336,2496.2,2496.0,0.28053]
[1730551297044,0.28052,2496.1,2496.0,0.28053]
[1730551297342,3.4067536,2496.2,2496.0,0.28053]
[1730551297550,3.4067536,2496.2,2496.1,0.28052]
[1730551297739,0.28053,2496.1,2496.0,0.28053]
[1730551298440,0.28053,2496.1,2495.9,0.4474]
[1730551298441,3.1262336,2496.2,2495.9,0.4474]
[1730551298840,3.4067536,2496.2,2496.1,0.28052]
[1730551299237,3.1262336,2496.2,2496.1,0.28052]
[1730551299437,3.1262336,2496.4,2496.3,0.2805]
[1730551300448,3.4067236,2496.4,2496.3,0.2805]
[1730551303456,0.28051,2496.2,2496.1,0.28051]
[1730551304545,6.3340336,2496.4,2495.9,0.4474]
[1730551304746,3.4067436,2496.2,2495.9,0.4474]
[1730551304960,3.4067436,2496.2,2496.1,0.28052]
[1730551305145,3.1262336,2496.2,2495.9,0.4474]
[1730551305455,0.73493,2496.1,2496.0,0.28052]
[1730551305847,0.4544,2496.1,2495.9,0.4474]
[1730551306045,0.28055,2495.9,2495.8,1.19405]
[1730551306647,3.4067736,2496.0,2495.9,0.28055]
[1730551309746,3.1262336,2496.0,2495.9,0.28055]
[1730551319456,3.4067636,2496.0,2495.9,0.28055]
[1730551319657,5.21139903,2496.0,2495.8,0.4577]
[1730551319958,0.28055,2495.9,2495.8,0.73825]
[1730551320263,0.4473,2495.9,2495.8,0.73825]
[1730551320561,0.72785,2495.9,2495.8,0.73825]
[1730551320763,0.4473,2495.9,2495.7,0.28056]
[1730551320955,0.28056,2495.8,2495.7,0.28056]
[1730551321155,3.27041543,2495.9,2495.8,0.28056]
[1730551321356,4.0309336,2495.9,2495.6,0.4344]
[1730551321558,2.36879591,2495.8,2495.7,0.28056]
[1730551321753,0.28057,2495.7,2495.6,0.71497]
[1730551322265,2.78990591,2495.7,2495.6,0.71497]
[1730551322861,2.78990591,2495.7,2495.6,0.28057]
[1730551324160,2.50933591,2495.7,2495.6,0.28057]
[1730551324668,5.91613951,2495.7,2495.6,0.28057]
[1730551325366,3.8279036,2495.7,2495.6,0.28057]
[1730551326259,3.5473336,2495.7,2495.6,0.28057]
[1730551326456,3.8279036,2495.7,2495.6,0.28057]
[1730551327857,0.28058,2495.6,2495.5,0.71729]
[1730551328062,0.28059,2495.5,2495.4,3.4884]
[1730551328260,5.95335951,2495.5,2495.4,0.2806]
[1730551328465,9.72244229,2495.5,2495.4,0.2806]
[1730551328664,8.95421497,2495.5,2495.4,0.2806]
[1730551328859,6.34775819,2495.5,2495.4,0.2806]
[1730551329566,8.43348204,2495.5,2495.4,0.2806]
[1730551329764,8.71407204,2495.5,2495.4,0.2806]
[1730551329965,6.62834819,2495.5,2495.4,0.2806]
[1730551330158,6.34775819,2495.5,2495.4,0.2806]
[1730551330667,8.43312324,2495.5,2495.4,0.2806]
[1730551331168,6.34775819,2495.5,2495.4,0.2806]
[1730551331369,8.43284103,2495.5,2495.4,0.2806]
[1730551332267,8.71369014,2495.5,2495.4,0.2806]
[1730551332969,10.15774833,2495.5,2495.4,0.2806]
[1730551333168,0.28061,2495.4,2495.3,0.28061]
[1730551333371,5.25385398,2495.4,2495.3,0.28061]
[1730551334474,5.25385398,2495.4,2495.0,0.9097]
[1730551334475,0.28064,2495.1,2495.0,0.28064]
[1730551334667,0.28062,2495.1,2495.0,0.28062]
[1730551335067,1.15612,2495.1,2495.0,0.28062]
[1730551335270,3.24090947,2495.1,2495.0,0.28062]
[1730551335470,1.15612,2495.1,2495.0,0.28062]
[1730551335667,0.8755,2495.1,2495.0,0.28062]
[1730551336370,0.4457,2495.1,2495.0,0.28062]
[1730551336573,3.57457168,2495.1,2495.0,0.28062]
[1730551337871,2.08478947,2495.2,2495.0,4.008]
[1730551338181,2.08478947,2495.3,2495.2,0.2806]
[1730551339678,2.08478947,2495.3,2495.2,0.7001]
[1730551339679,3.12887168,2495.3,2495.2,0.7001]
[1730551340176,5.21366115,2495.3,2495.2,0.7001]
[1730551340368,3.12887168,2495.3,2495.2,0.7001]
[1730551340569,5.21366115,2495.3,2495.2,0.7001]
[1730551344364,3.12887168,2495.3,2495.2,0.7001]
[1730551344965,2.36536947,2495.4,2495.2,0.4195]
[1730551344966,2.08478947,2495.4,2495.2,0.4195]
[1730551345167,3.12887168,2495.5,2495.4,0.28058]
[1730551345367,5.21366115,2495.7,2495.3,4.0072]
[1730551345575,3.12887168,2495.7,2495.6,0.28056]
[1730551345965,3.40942168,2495.7,2495.6,0.28056]
[1730551346169,3.12887168,2495.7,2495.6,0.28056]
[1730551349975,0.28056,2495.6,2495.5,0.28056]
[1730551350179,0.28058,2495.5,2495.4,0.28058]
[1730551350380,5.67476115,2495.5,2495.2,0.4195]
[1730551350586,9.08421283,2495.5,2495.4,0.28058]
[1730551350784,0.28059,2495.3,2495.2,0.7001]
[1730551350974,0.28059,2495.3,2495.2,0.2806]
[1730551351479,2.36537947,2495.3,2495.2,0.2806]
[1730551352484,2.08478947,2495.3,2495.2,0.2806]
[1730551352884,2.08478947,2495.4,2495.3,0.28059]
[1730551353074,3.87054168,2495.5,2495.1,0.8855]
[1730551353075,5.67476115,2495.5,2495.1,0.8855]
[1730551353282,5.21366115,2495.5,2495.4,0.28058]
[1730551354992,3.12887168,2495.5,2495.4,0.28058]
[1730551355183,5.49522586,2495.5,2495.4,0.28058]
[1730551355584,9.50242586,2495.5,2495.4,0.28058]
[1730551355784,7.41664168,2495.5,2495.4,0.28058]
[1730551356786,7.13607168,2495.5,2495.4,0.28058]
[1730551357186,3.12887168,2495.5,2495.4,0.28058]
[1730551357382,7.13607168,2495.5,2495.1,0.8855]
[1730551357584,2.3670002,2495.4,2495.3,0.28059]
[1730551357791,3.87026168,2495.4,2495.3,0.28059]
[1730551357988,5.95665487,2495.4,2495.3,0.28059]
[1730551358289,0.2806,2495.3,2495.2,0.2806]
[1730551358489,2.81283387,2495.3,2495.2,0.2806]
[1730551360091,2.53223387,2495.3,2495.2,0.2806]
[1730551360494,2.81282387,2495.3,2495.2,0.2806]
[1730551361982,2.53223387,2495.3,2495.2,0.2806]
[1730551362187,2.08653387,2495.3,2495.2,0.2806]
[1730551363594,2.08653387,2495.3,2495.2,0.7285]
[1730551367400,5.73532846,2495.4,2495.3,0.28059]
[1730551367696,5.73532846,2495.4,2495.3,0.72839]
[1730551367997,5.73532846,2495.4,2495.3,1.29580511]
[1730551368199,5.73532846,2495.4,2495.3,1.29580008]
[1730551368398,5.73532846,2495.4,2495.3,1.29586032]
[1730551369900,5.73532846,2495.4,2495.3,1.29590701]
[1730551370298,5.73532846,2495.4,2495.3,1.2959014]
[1730551370498,4.05031511,2495.4,2495.3,1.2959014]
[1730551371395,2.09177469,2495.4,2495.3,6.21126335]
[1730551371703,1.44385833,2495.5,2495.4,0.28058]
[1730551371899,1.44385833,2495.5,2495.4,5.76345335]
[1730551372300,3.53563302,2495.7,2495.4,5.48287335]
[1730551372604,3.53563302,2495.7,2495.6,3.48836]
[1730551372605,2.09177469,2495.7,2495.6,3.48836]
[1730551372903,2.09177469,2495.7,2495.6,4.96403335]
[1730551373101,2.09177469,2495.7,2495.6,9.39593335]
[1730551373303,2.60645678,2495.9,2495.6,9.11537335]
[1730551373498,2.60645678,2495.9,2495.8,0.28054]
[1730551376309,5.7340671,2496.0,2495.7,0.4344]
[1730551376500,3.12761032,2496.0,2495.9,0.28053]
[1730551376698,5.74115002,2496.0,2495.9,0.28053]
[1730551377698,5.74081449,2496.0,2495.9,0.28053]
[1730551377904,3.12761032,2496.0,2495.9,0.28053]
[1730551378209,2.61328886,2496.0,2495.9,0.28053]
[1730551378411,0.4329,2496.1,2495.7,0.4344]
[1730551378412,3.04618886,2496.1,2495.7,0.4344]
[1730551378712,0.4329,2496.1,2496.0,0.28051]
[1730551379212,0.4329,2496.1,2496.0,1.13851]
[1730551382612,3.12761032,2496.2,2496.1,0.2805]
[1730551382808,3.12761032,2496.2,2496.1,0.7192]
[1730551383605,0.4631,2496.3,2496.1,4.4451]
[1730551383816,2.61328886,2496.4,2496.1,0.4387]
[1730551384020,9.4319747,2496.5,2496.4,0.28047]
[1730551385403,9.4319747,2496.5,2496.1,0.4387]
[1730551385610,3.12761032,2496.2,2496.1,0.2805]
[1730551386116,4.44021032,2496.2,2496.1,0.2805]
[1730551386509,4.44021032,2496.2,2496.0,0.858]
[1730551386716,7.33399918,2496.2,2496.0,0.28051]
[1730551386908,0.2805,2496.1,2496.0,0.28051]
[1730551387911,0.2805,2496.1,2495.9,0.28052]
[1730551388319,0.2805,2496.1,2495.8,0.28054]
[1730551388616,0.2805,2496.1,2495.9,0.28051]
[1730551389010,0.2805,2496.1,2496.0,0.28051]
[1730551390517,0.28052,2496.0,2495.9,0.28052]
[1730551390926,3.40813032,2496.0,2495.9,0.28052]
[1730551392211,3.12761032,2496.0,2495.9,0.28052]
[1730551392409,3.40812032,2496.0,2495.9,0.28052]
[1730551393617,3.12761032,2496.0,2495.9,0.28052]
[1730551394417,1.44360203,2496.0,2495.7,0.421]
[1730551394722,1.72412203,2496.0,2495.9,0.28053]
[1730551395019,1.44360203,2496.0,2495.9,0.28053]
[1730551395613,1.72411203,2496.0,2495.9,0.28053]
[1730551397514,1.44360203,2496.0,2495.9,0.28053]
[1730551398120,1.72411203,2496.0,2495.9,0.28053]
[1730551398315,1.44360203,2496.0,2495.9,0.28053]
[1730551398518,1.44360203,2496.0,2495.6,3.6319]
[1730551398711,0.28053,2495.9,2495.8,0.28053]
[1730551400012,2.61328886,2496.0,2495.6,3.6319]
[1730551400211,0.4299,2495.8,2495.7,0.28055]
[1730551402526,0.71044,2495.8,2495.7,0.28055]
[1730551403322,2.79891654,2495.8,2495.7,0.28055]
[1730551403825,3.67261654,2495.8,2495.7,0.28055]
[1730551404318,1.58414,2495.8,2495.7,0.28055]
[1730551405626,0.28056,2495.7,2495.6,0.28055]
[1730551405819,3.81327756,2495.7,2495.6,0.28055]
[1730551406023,1.72416203,2495.7,2495.6,0.28055]
[1730551406326,4.33745089,2495.7,2495.6,0.28055]
[1730551406921,0.28057,2495.6,2495.5,0.28056]
[1730551407123,1.72417203,2495.6,2495.5,0.28056]
[1730551407327,4.33746089,2495.6,2495.5,0.28056]
[1730551407522,4.05689089,2495.6,2495.4,0.8861]
[1730551407827,4.05689089,2495.6,2495.4,0.28058]
[1730551407828,0.28057,2495.5,2495.4,0.28058]
[1730551408031,4.05689089,2495.6,2495.3,3.6423]
[1730551408226,4.40402418,2495.4,2495.1,0.4642]
[1730551408428,4.40402418,2495.4,2495.1,0.28062]
[1730551408429,3.81261964,2495.2,2495.1,0.28062]
[1730551408624,0.28062,2495.1,2495.0,0.28062]
[1730551408822,3.53180746,2495.1,2495.0,0.28062]
[1730551410425,1.44360203,2495.1,2495.0,0.28062]
[1730551410632,3.53180746,2495.1,2495.0,0.28062]
[1730551411333,2.61328886,2495.3,2494.9,5.51190203]
[1730551411630,2.08667777,2495.3,2495.2,0.2806]
[1730551412128,2.08667777,2495.3,2494.9,6.21347203]
[1730551412129,5.20907089,2495.4,2495.3,0.28059]
[1730551416427,2.59578203,2495.4,2495.3,0.28059]
[1730551416835,5.20907089,2495.4,2495.3,0.28059]
[1730551417143,2.59578203,2495.4,2495.3,0.28059]
[1730551418134,1.44360203,2495.4,2495.3,0.28059]
[1730551418336,3.52735923,2495.4,2495.3,0.28059]
[1730551419436,1.44360203,2495.4,2495.3,0.28059]
[1730551419937,3.52735923,2495.4,2495.3,0.28059]
[1730551421333,1.44360203,2495.4,2495.3,0.28059]
[1730551421541,3.52735923,2495.4,2495.3,0.28059]
[1730551421938,1.44360203,2495.4,2495.3,0.28059]
[1730551423539,1.44360203,2495.5,2495.4,0.28058]
[1730551423843,1.44360203,2495.5,2495.4,1.16518]
[1730551424737,3.96295923,2495.7,2495.6,0.28056]
[1730551424936,1.87920203,2495.7,2495.6,0.28056]
[1730551426144,4.24350923,2495.7,2495.6,0.28056]
[1730551426644,2.15975203,2495.7,2495.6,0.28056]
[1730551426852,1.87920203,2495.7,2495.6,0.28056]
[1730551427145,3.96295923,2495.7,2495.6,0.28056]
[1730551427339,1.87920203,2495.7,2495.6,0.28056]
[1730551428843,3.96295923,2495.7,2495.6,0.28056]
[1730551429144,1.87920203,2495.7,2495.6,0.28056]
[1730551429541,3.96295923,2495.7,2495.6,0.28056]
[1730551430936,3.52735923,2495.7,2495.6,0.28056]
[1730551431143,1.44360203,2495.7,2495.6,0.28056]
[1730551431344,3.52735923,2495.7,2495.6,0.28056]
[1730551431646,1.44360203,2495.7,2495.6,4.28776]
[1730551432045,3.52735923,2495.7,2495.6,4.28776]
[1730551432845,1.44360203,2495.7,2495.6,4.28776]
[1730551433346,3.52735923,2495.7,2495.6,4.28776]
[1730551433543,3.52735923,2495.8,2495.7,0.28055]
[1730551433748,1.44360203,2495.8,2495.7,0.28055]
[1730551433938,1.44360203,2495.8,2495.7,4.28775]
[1730551437446,2.0837572,2495.9,2495.8,0.28054]
[1730551437654,3.52735923,2496.0,2495.9,0.28053]
[1730551438853,2.0837572,2496.1,2496.0,0.28051]
[1730551439047,3.52735923,2496.2,2495.9,3.2078]
[1730551439350,3.52735923,2496.2,2496.1,0.2805]
[1730551440142,1.44360203,2496.2,2496.1,0.2805]
[1730551440342,3.52735923,2496.2,2496.1,0.2805]
[1730551441044,1.44360203,2496.2,2496.1,0.2805]
[1730551441550,1.44360203,2496.2,2495.9,3.2078]
[1730551441551,2.88720406,2496.2,2495.9,3.2078]
[1730551441849,3.80786923,2496.0,2495.9,3.48832]
[1730551442251,4.26056923,2496.0,2495.9,3.48832]
[1730551442641,4.26056923,2496.0,2495.9,3.2078]
[1730551443042,4.26056923,2496.0,2495.9,3.48833]
[1730551443243,5.90270203,2496.0,2495.1,0.70154]
[1730551443458,1.44360203,2495.3,2495.2,1.29421954]
[1730551443638,1.44360203,2495.3,2495.2,0.7274]
[1730551443844,1.72419203,2495.3,2495.2,0.7274]
[1730551444346,1.44360203,2495.3,2495.2,0.7274]
[1730551444547,5.21334086,2495.4,2495.2,0.2806]
[1730551444745,5.49393086,2495.4,2495.2,0.2806]
[1730551445144,2.08457623,2495.3,2495.2,0.2806]
[1730551445338,2.36516623,2495.3,2495.2,0.2806]
[1730551445546,0.28061,2495.2,2495.1,0.28061]
[1730551445746,2.08457623,2495.3,2495.1,0.28061]
[1730551445943,2.36517623,2495.3,2495.1,0.28061]
[1730551446154,2.08457623,2495.3,2495.0,0.431]
[1730551446344,0.28062,2495.1,2495.0,0.28062]
[1730551447348,5.94125086,2495.2,2495.0,0.28062]
[1730551447652,0.28062,2495.1,2495.0,0.28062]
[1730551448051,5.94125086,2495.2,2495.0,0.28062]
[1730551449455,5.66064086,2495.2,2495.0,0.28062]
[1730551449851,5.94125086,2495.2,2495.0,0.28062]
[1730551450250,5.66064086,2495.2,2495.0,0.28062]
[1730551450452,0.28062,2495.1,2495.0,0.28062]
[1730551450758,5.66064086,2495.2,2495.0,0.28062]
[1730551450957,0.28062,2495.1,2495.0,0.28062]
[1730551452056,5.66064086,2495.2,2494.8,0.4222]
[1730551452258,0.28062,2495.1,2495.0,0.28062]
[1730551452754,0.28062,2495.1,2494.9,0.28063]
[1730551453155,5.66064086,2495.2,2494.8,0.4222]
[1730551453457,2.08457623,2495.1,2494.8,0.4222]
[1730551453652,2.08457623,2495.1,2494.9,0.4184]
[1730551453951,0.28063,2495.0,2494.9,0.69903]
[1730551454963,2.36519623,2495.1,2495.0,0.28063]
[1730551455253,2.36519623,2495.1,2494.9,0.4184]
[1730551455254,2.08457623,2495.1,2494.9,0.4184]
[1730551455647,2.36519623,2495.1,2494.9,0.69903]
[1730551455853,2.36519623,2495.1,2494.9,0.4184]
[1730551456050,2.08457623,2495.1,2495.0,0.28063]
[1730551456255,5.49395086,2495.2,2495.1,0.28062]
[1730551456761,2.08457623,2495.2,2495.1,0.28062]
[1730551457146,3.4884,2495.3,2494.9,0.4184]
[1730551457360,0.2806,2495.2,2495.1,0.28061]
[1730551458052,2.36423083,2495.2,2495.1,0.28061]
[1730551458250,5.57203083,2495.3,2495.1,0.28061]
[1730551458651,5.29143083,2495.3,2494.9,0.4184]
[1730551458956,0.28061,2495.2,2495.1,0.28061]
[1730551461255,0.2806,2495.2,2495.1,0.2806]
[1730551461461,5.57203083,2495.3,2495.2,0.2806]
[1730551461952,0.28061,2495.2,2495.1,0.28061]
[1730551462456,2.3644828,2495.3,2495.2,0.2806]
[1730551463159,0.28061,2495.2,2495.1,0.28061]
[1730551464450,1.72468017,2495.2,2495.1,0.28061]
[1730551465360,7.53591702,2495.2,2494.8,0.4222]
[1730551465557,0.28064,2494.9,2494.8,0.4222]
[1730551465758,0.28064,2494.9,2494.7,1.13845]
[1730551465759,0.28065,2494.8,2494.7,1.13845]
[1730551466061,1.72472017,2494.8,2494.7,1.13845]
[1730551466258,1.72472017,2494.8,2494.7,0.28065]
[1730551466456,0.28065,2494.8,2494.7,0.28065]
[1730551468657,5.49391787,2494.9,2494.8,0.28065]
[1730551468858,3.41007102,2494.9,2494.8,0.28065]
[1730551469059,5.49391787,2494.9,2494.8,0.28065]
[1730551469258,3.41007102,2494.9,2494.8,0.28065]
[1730551475367,3.41007102,2494.9,2494.5,1.295]
[1730551475368,3.12943102,2494.9,2494.5,1.295]
[1730551475560,0.28066,2494.8,2494.7,0.28065]
[1730551477580,3.41008102,2494.9,2494.8,0.28065]
[1730551480380,3.2078,2495.0,2494.9,0.28064]
[1730551480677,2.36444685,2495.3,2494.9,4.008]
[1730551480867,2.36444685,2495.3,2495.2,0.2806]
[1730551483777,0.2806,2495.3,2495.2,0.2806]
[1730551484074,2.36327514,2495.3,2495.2,0.2806]
[1730551484272,0.2806,2495.3,2495.2,0.2806]
[1730551485176,5.81352029,2495.4,2495.2,0.2806]
[1730551485375,2.08421793,2495.3,2495.2,0.2806]
[1730551485571,2.08421793,2495.3,2495.1,0.70155]
[1730551485572,2.08421793,2495.4,2495.3,4.28779]
[1730551485769,2.08421793,2495.6,2495.5,0.28057]
[1730551486179,2.08421793,2495.7,2495.6,0.28056]
[1730551486578,3.80832957,2495.7,2495.6,0.28056]
[1730551486978,3.52777957,2495.7,2495.6,0.28056]
[1730551487474,1.44356164,2495.7,2495.6,0.28056]
[1730551488480,2.08582993,2495.7,2495.6,4.0072]
[1730551488678,2.08582993,2495.7,2495.6,4.28776]
[1730551489890,3.52939157,2495.7,2495.6,4.28776]
[1730551490377,3.52939157,2495.7,2495.6,0.28056]
[1730551490575,3.52939157,2495.7,2495.6,4.28776]
[1730551491781,3.52939157,2495.7,2495.6,0.28056]
[1730551493180,1.44356164,2495.7,2495.6,0.28056]
[1730551495577,3.52939157,2495.8,2495.7,0.28055]
[1730551496482,3.80993157,2495.8,2495.7,0.28055]
[1730551497287,1.72410164,2495.8,2495.7,0.28055]
[1730551498082,3.80993157,2495.8,2495.7,0.28055]
[1730551498286,1.72410164,2495.8,2495.7,0.28055]
[1730551498696,1.44356164,2495.8,2495.7,0.28055]
[1730551500897,1.72410164,2495.8,2495.7,0.28055]
[1730551501688,1.44356164,2495.8,2495.7,0.28055]
[1730551503493,5.29362993,2496.0,2495.9,0.28053]
[1730551503686,5.77770206,2496.2,2495.8,1.3407]
[1730551503885,3.69187213,2496.2,2496.1,0.2805]
[1730551504296,3.69187213,2496.2,2496.1,4.2869]
[1730551504597,3.69187213,2496.2,2496.1,0.2805]
[1730551504802,5.13543377,2496.2,2496.1,0.2805]
[1730551505204,1.44356164,2496.2,2496.1,0.2805]
[1730551506293,3.2078,2496.3,2496.2,0.28049]
[1730551506294,4.65136164,2496.3,2496.2,0.28049]
[1730551506501,4.65136164,2496.3,2496.2,1.16329]
[1730551509197,1.44356164,2496.3,2496.2,1.16329]
[1730551509387,1.72404164,2496.3,2496.2,1.16329]
[1730551509592,1.44356164,2496.3,2496.2,1.16329]
[1730551510594,1.85786164,2496.6,2496.2,4.8892]
[1730551510595,1.44356164,2496.6,2496.2,4.8892]
[1730551510792,4.93179164,2496.8,2496.7,0.28044]
[1730551510994,1.44356164,2496.8,2496.7,0.28044]
[1730551511504,1.72397164,2497.0,2496.5,1.44356164]
[1730551511705,1.72397164,2497.0,2496.9,0.28041]
[1730551511899,1.44356164,2497.0,2496.9,0.28041]
[1730551512401,2.60046164,2497.1,2496.9,0.2804]
[1730551512599,1.44356164,2497.0,2496.9,0.28041]
[1730551513199,1.72396164,2497.0,2496.9,0.28041]
[1730551514503,1.44356164,2497.0,2496.9,0.28041]
[1730551516300,1.72396164,2497.0,2496.9,0.28041]
[1730551516505,1.44356164,2497.0,2496.9,0.28041]
[1730551517505,2.32006164,2497.1,2497.0,0.2804]
[1730551518105,2.60045164,2497.1,2497.0,0.2804]
[1730551518304,0.2804,2497.0,2496.9,0.28041]
[1730551518612,0.2804,2497.0,2496.2,0.844]
[1730551518613,1.44356164,2497.0,2496.2,0.844]
[1730551518812,1.72399164,2496.8,2496.7,0.28043]
[1730551519112,1.44356164,2496.8,2496.4,0.4485]
[1730551519314,1.44356164,2496.8,2496.7,0.28044]
[1730551519615,1.72399164,2496.8,2496.7,0.28044]
[1730551520312,1.72399164,2496.8,2496.6,0.28044]
[1730551520313,0.28044,2496.7,2496.6,0.28044]
[1730551520610,0.4499,2496.7,2496.6,0.28044]
[1730551521404,0.73034,2496.7,2496.4,0.4485]
[1730551521603,0.28045,2496.6,2496.5,0.28045]
[1730551521805,0.4499,2496.7,2496.4,0.4485]
[1730551522010,0.4499,2496.7,2496.6,0.28045]
[1730551522210,0.73034,2496.7,2496.6,0.28045]
[1730551522816,0.4499,2496.7,2496.6,0.28045]
[1730551524617,0.73034,2496.7,2496.6,0.28045]
[1730551525113,0.4499,2496.7,2496.6,0.28045]
[1730551525318,0.73034,2496.7,2496.6,0.28045]
[1730551527007,0.4499,2496.7,2496.6,0.28045]
[1730551528018,0.73034,2496.7,2496.6,0.28045]
[1730551529014,1.44356164,2496.9,2496.8,0.28041]
[1730551529216,3.6586,2497.1,2497.0,0.2804]
[1730551529519,3.2078,2497.1,2497.0,0.2804]
[1730551530612,3.4882,2497.1,2497.0,0.2804]
[1730551531213,3.2078,2497.1,2497.0,0.2804]
[1730551531625,1.44356164,2497.2,2496.8,1.326]
[1730551531819,4.65136164,2497.2,2496.8,1.326]
[1730551532008,4.65136164,2497.2,2497.1,0.28039]
[1730551532009,4.93174164,2497.2,2497.1,0.28039]
[1730551532619,4.65136164,2497.2,2497.1,0.28039]
[1730551533524,3.2078,2497.2,2497.1,0.28039]
[1730551533723,3.52939157,2497.4,2496.9,1.44356164]
[1730551533724,1.72392164,2497.4,2496.9,1.44356164]
[1730551533923,1.72392164,2497.4,2497.3,0.28037]
[1730551534122,1.44356164,2497.4,2497.3,0.28037]
[1730551534324,5.72792164,2497.4,2497.3,0.28037]
[1730551534817,0.28038,2497.2,2497.1,0.28038]
[1730551535021,1.72394164,2497.2,2497.1,0.28038]
[1730551535832,1.44356164,2497.2,2496.8,1.326]
[1730551536030,1.72397164,2496.9,2496.8,1.60642]
[1730551537138,1.72397164,2497.0,2496.9,0.28041]
[1730551538237,1.72397164,2497.0,2496.4,0.70115]
[1730551538238,5.44836164,2497.0,2496.3,1.44356164]
[1730551538534,0.28045,2496.6,2496.5,0.8803]
[1730551538743,3.2078,2496.8,2496.3,0.4603]
[1730551538744,5.29362993,2496.8,2496.3,0.4603]
[1730551538932,1.44356164,2496.4,2496.3,1.16008]
[1730551539133,1.72403164,2496.4,2496.3,1.16008]
[1730551539531,1.44356164,2496.4,2496.3,1.16008]
[1730551540630,1.72403164,2496.4,2496.3,1.16008]
[1730551541637,3.52939157,2496.6,2496.3,0.8796]
[1730551541827,4.25503157,2496.7,2496.6,0.28045]
[1730551542028,3.97459157,2496.7,2496.3,2.32316164]
[1730551542233,3.80983157,2496.7,2496.6,0.28045]
[1730551543135,3.52939157,2496.7,2496.3,2.32316164]
[1730551543437,2.08582993,2496.6,2496.3,0.8796]
[1730551543744,2.08582993,2496.6,2496.5,0.28046]
[1730551543745,2.36627993,2496.6,2496.5,0.28046]
[1730551545342,0.28045,2496.6,2496.5,0.28046]
[1730551545535,2.36571663,2496.6,2496.5,0.28046]
[1730551546341,0.28045,2496.6,2496.5,0.28046]
[1730551546735,2.36574007,2496.6,2496.5,0.28046]
[1730551547140,0.28045,2496.6,2496.5,0.28046]
[1730551547638,0.28046,2496.5,2496.4,0.28046]
[1730551547941,2.36640728,2496.5,2496.3,0.8796]
[1730551548132,0.28048,2496.3,2496.2,0.74368]
[1730551548637,3.80998892,2496.3,2496.2,0.74368]
[1730551548941,2.08594728,2496.3,2496.2,0.74368]
[1730551550644,2.08594728,2496.4,2496.2,0.4632]
[1730551550844,2.08738757,2496.3,2496.2,0.74369]
[1730551551637,2.08738757,2496.4,2496.3,0.28048]
[1730551552040,2.88619029,2496.5,2496.4,0.28047]
[1730551552743,2.88619029,2496.5,2496.2,0.4632]
[1730551552744,0.28047,2496.4,2496.3,0.28047]
[1730551553651,4.04928193,2496.5,2496.3,0.28048]
[1730551553841,4.04928193,2496.5,2496.2,0.4632]
[1730551554041,0.28047,2496.4,2496.3,0.28047]
[1730551555049,1.72402164,2496.5,2496.4,0.28047]
[1730551555241,4.33358769,2496.5,2496.4,0.28047]
[1730551555642,4.33373635,2496.5,2496.4,0.28047]
[1730551556555,0.28047,2496.4,2496.3,0.28047]
[1730551556851,2.89004921,2496.4,2496.3,0.28047]
[1730551557344,0.28048,2496.3,2496.2,0.4632]
[1730551557548,1.89016164,2496.3,2495.9,0.4542]
[1730551557851,1.44356164,2496.0,2495.9,1.16832]
[1730551558051,1.44356164,2496.0,2495.9,1.73540728]
[1730551558257,1.44356164,2496.0,2495.9,1.16832]
[1730551559148,1.72407164,2496.0,2495.9,1.16832]
[1730551559749,3.81156303,2496.1,2496.0,0.28051]
[1730551560551,2.08749139,2496.1,2496.0,0.28051]
[1730551560853,2.08749139,2496.2,2496.1,0.2805]
[1730551563361,2.08749139,2496.2,2496.1,4.2869]